[Event "44th Chess Olympiad Open 2022"]
[Site "Chennai"]
[Date "2022.07.31"]
[Round "3.49"]
[White "Zhakshylykov, Erzhan"]
[Black "Sanches, Casanova Romario"]
[Result "1-0"]
[WhiteElo "2332"]
[BlackElo "2066"]
[Annotator "RC"]
[PlyCount "67"]
[EventDate "2022.??.??"]
[TimeControl "60"]

1. e4 {[%emt 0:00:04]} c6 {[%emt 0:01:26]} 2. d4 {[%emt 0:00:17]} d5 {[%emt 0:
00:00]} 3. e5 {[%emt 0:00:10]} Bf5 {[%emt 0:00:47]} 4. Nd2 {[%emt 0:05:03]} e6
{[%emt 0:00:28]} 5. Nb3 {[%emt 0:00:11]} Nd7 {[%emt 0:02:45]} 6. Nf3 {[%emt 0:
00:00]} h5 {[%emt 0:02:16]} 7. Be2 {[%emt 0:03:01]} h4 {[%emt 0:05:19]} 8. h3 {
[%emt 0:05:08]} Be7 {[%emt 0:06:06]} 9. Bd2 {[%emt 0:14:45]} Be4 {[%emt 0:00:
00]} 10. O-O {[%emt 0:11:52]} Bxf3 {[%emt 0:06:55]} 11. Bxf3 {[%emt 0:00:07]}
Nh6 {[%emt 0:07:20]} 12. Be2 {[%emt 0:14:03]} Nf5 {[%emt 0:04:06]} 13. Bd3 {
[%emt 0:01:27]} g6 {[%emt 0:09:16]} 14. Qg4 {[%emt 0:00:48]} Rh5 {[%emt 0:00:
00]} 15. c4 {[%emt 0:09:17]} Bg5 {[%emt 0:07:55]} 16. f4 {[%emt 0:07:01]} Be7 {
[%emt 0:03:12]} 17. cxd5 {[%emt 0:02:10]} cxd5 {[%emt 0:00:36]} 18. Rfc1 {
[%emt 0:00:37]} a5 {[%emt 0:02:49]} 19. Bb5 {[%emt 0:02:42]} a4 {[%emt 0:06:27]
} 20. Nc5 {[%emt 0:00:21]} Bxc5 {[%emt 0:00:17]} 21. dxc5 {[%emt 0:00:05]} Kf8
{[%emt 0:00:33]} 22. Kh2 {[%emt 0:00:41]} Kg7 {[%emt 0:00:30]} 23. Qd1 {
[%emt 0:02:48]} a3 {[%emt 0:02:39]} 24. b4 {[%emt 0:00:09]} Nb8 {[%emt 0:00:29]
} 25. Be2 {[%emt 0:00:54]} Rh8 {[%emt 0:00:23]} 26. b5 {[%emt 0:00:32]} Ng3 {
[%emt 0:02:42]} 27. Rab1 {[%emt 0:01:33]} Nxe2 {[%emt 0:02:20]} 28. Qxe2 {
[%emt 0:00:04]} Qd7 {[%emt 0:01:00]} 29. Rb4 {[%emt 0:02:01]} Rc8 {[%emt 0:00:
00]} 30. f5 {[%emt 0:00:35]} exf5 {[%emt 0:00:56]} 31. Bg5 {[%emt 0:00:06]} Rh8
{[%emt 0:02:23]} 32. Bf6+ {[%emt 0:00:06]} Kg8 {[%emt 0:00:02]} 33. Bxh8 {
[%emt 0:00:12]} Kxh8 {[%emt 0:00:05]} 34. Rxh4+ {[%emt 0:00:18]} 1-0

[Event "44th Chess Olympiad Open 2022"]
[Site "Chennai"]
[Date "2022.07.31"]
[Round "3.49"]
[White "Matoewi, Roger"]
[Black "Degenbaev, Aziz"]
[Result "1/2-1/2"]
[WhiteElo "2015"]
[BlackElo "2215"]
[Annotator "RC"]
[PlyCount "31"]
[EventDate "2022.??.??"]
[TimeControl "60"]

1. e4 {[%emt 0:00:09]} c5 {[%emt 0:00:52]} 2. b3 {[%emt 0:00:40]} d6 {[%emt 0:
00:00]} 3. Bb5+ {[%emt 0:01:12]} Bd7 {[%emt 0:01:59]} 4. a4 {[%emt 0:01:20]}
Nf6 {[%emt 0:08:37]} 5. Nc3 {[%emt 0:05:52]} e6 {[%emt 0:04:47]} 6. Bb2 {
[%emt 0:02:17]} Be7 {[%emt 0:02:38]} 7. Nf3 {[%emt 0:01:53]} O-O {[%emt 0:00:
00]} 8. O-O {[%emt 0:00:25]} Nc6 {[%emt 0:03:19]} 9. Re1 {[%emt 0:04:45]} Rc8 {
[%emt 0:13:06]} 10. e5 {[%emt 0:26:44]} Nxe5 {[%emt 0:08:20]} 11. Nxe5 {
[%emt 0:00:11]} dxe5 {[%emt 0:00:03]} 12. Re2 {[%emt 0:00:26]} e4 13. Rxe4 {
[%emt 0:00:32]} a6 {[%emt 0:01:31]} 14. Re5 {[%emt 0:01:19]} Bc6 {[%emt 0:00:
00]} 15. Bd3 {[%emt 0:16:05]} Bd6 {[%emt 0:16:14]} 16. Qe2 {[%emt 0:04:12]}
1/2-1/2

[Event "44th Chess Olympiad Open 2022"]
[Site "Chennai"]
[Date "2022.07.31"]
[Round "3.49"]
[White "Giasi, Viresh"]
[Black "Markov, Mikhail"]
[Result "0-1"]
[WhiteElo "2006"]
[BlackElo "2333"]
[Annotator "RC"]
[PlyCount "84"]
[EventDate "2022.??.??"]
[TimeControl "60"]

1. e4 {[%emt 0:00:35]} c5 {[%emt 0:00:05]} 2. Nf3 {[%emt 0:00:04]} d6 {[%emt 0:
00:00]} 3. d4 {[%emt 0:00:03]} cxd4 {[%emt 0:00:04]} 4. Nxd4 {[%emt 0:00:02]}
Nf6 {[%emt 0:00:06]} 5. Nc3 {[%emt 0:00:05]} a6 {[%emt 0:00:03]} 6. Be2 {
[%emt 0:00:24]} e5 {[%emt 0:01:14]} 7. Nb3 {[%emt 0:03:28]} Be6 {[%emt 0:00:38]
} 8. Be3 {[%emt 0:00:49]} Be7 {[%emt 0:01:06]} 9. O-O {[%emt 0:02:44]} Nbd7 {
[%emt 0:01:07]} 10. f4 {[%emt 0:07:28]} exf4 {[%emt 0:00:42]} 11. Bxf4 {
[%emt 0:01:38]} Ne5 {[%emt 0:00:22]} 12. Bxe5 {[%emt 0:01:02]} dxe5 {[%emt 0:
00:00]} 13. Qxd8+ {[%emt 0:00:05]} Rxd8 {[%emt 0:02:19]} 14. Rad1 {[%emt 0:00:
00]} O-O {[%emt 0:02:27]} 15. Bf3 {[%emt 0:31:42]} Rc8 {[%emt 0:03:17]} 16. Rc1
{[%emt 0:07:23]} Ng4 {[%emt 0:03:09]} 17. Bxg4 {[%emt 0:00:24]} Bxg4 {[%emt 0:
00:00]} 18. h3 {[%emt 0:01:13]} Be6 {[%emt 0:00:05]} 19. Nd2 {[%emt 0:05:59]}
Bg5 {[%emt 0:01:47]} 20. Rcd1 {[%emt 0:00:45]} Be3+ {[%emt 0:00:25]} 21. Kh2 {
[%emt 0:00:45]} Bd4 {[%emt 0:00:08]} 22. Ndb1 {[%emt 0:00:15]} Rc5 {[%emt 0:00:
00]} 23. Rf3 {[%emt 0:04:36]} Rfc8 {[%emt 0:01:51]} 24. b4 {[%emt 0:08:59]} Rc4
{[%emt 0:06:38]} 25. a3 {[%emt 0:01:11]} g6 {[%emt 0:01:56]} 26. Ne2 {[%emt 0:
00:00]} Bb2 {[%emt 0:05:07]} 27. c3 {[%emt 0:05:46]} Rxe4 {[%emt 0:02:22]} 28.
Rd2 {[%emt 0:00:05]} Ba1 {[%emt 0:07:52]} 29. Rf1 {[%emt 0:02:06]} Rc6 {
[%emt 0:05:47]} 30. Rc1 {[%emt 0:01:32]} Re3 {[%emt 0:01:23]} 31. Kg1 {[%emt 0:
00:00]} f5 {[%emt 0:00:07]} 32. g3 {[%emt 0:01:45]} g5 {[%emt 0:01:06]} 33. Kf2
{[%emt 0:01:43]} f4 {[%emt 0:00:06]} 34. Rg1 {[%emt 0:00:26]} Kf7 {[%emt 0:00:
00]} 35. h4 {[%emt 0:00:52]} h6 {[%emt 0:00:22]} 36. hxg5 {[%emt 0:00:07]} hxg5
{[%emt 0:00:04]} 37. Rh1 {[%emt 0:00:35]} Bf5 {[%emt 0:01:16]} 38. gxf4 {
[%emt 0:00:42]} gxf4 {[%emt 0:00:05]} 39. Ra2 {[%emt 0:02:40]} Be4 {[%emt 0:00:
00]} 40. Rd1 {[%emt 0:02:34]} Rh6 {[%emt 0:00:00]} 41. Nxf4 {[%emt 0:30:52]}
exf4 {[%emt 0:28:41]} 42. Rxa1 {[%emt 0:00:23]} Rh2+ {[%emt 0:00:00]} 0-1

[Event "44th Chess Olympiad Open 2022"]
[Site "Chennai"]
[Date "2022.07.31"]
[Round "3.50"]
[White "Aziz, Husain"]
[Black "Gemy, Jose Daniel"]
[Result "1-0"]
[WhiteElo "2380"]
[BlackElo "2373"]
[Annotator "RC"]
[PlyCount "97"]
[EventDate "2022.??.??"]
[TimeControl "60"]

1. d4 {[%emt 0:00:05]} Nf6 {[%emt 0:00:07]} 2. c4 {[%emt 0:00:08]} e6 {[%emt 0:
00:00]} 3. Nf3 {[%emt 0:00:16]} d5 {[%emt 0:00:08]} 4. Nc3 {[%emt 0:00:28]} Bb4
{[%emt 0:00:06]} 5. Qb3 {[%emt 0:02:25]} c5 {[%emt 0:01:18]} 6. dxc5 {[%emt 0:
00:00]} Nc6 {[%emt 0:00:29]} 7. Bg5 {[%emt 0:01:06]} Qa5 {[%emt 0:01:18]} 8.
Bxf6 {[%emt 0:01:01]} dxc4 {[%emt 0:00:15]} 9. Qxc4 {[%emt 0:00:08]} gxf6 {
[%emt 0:00:03]} 10. Rc1 {[%emt 0:00:58]} Qxc5 {[%emt 0:00:08]} 11. Qh4 {
[%emt 0:05:02]} Ke7 {[%emt 0:00:05]} 12. g3 {[%emt 0:00:59]} Bxc3+ {[%emt 0:00:
00]} 13. Rxc3 {[%emt 0:01:25]} Qb4 {[%emt 0:00:15]} 14. Qxb4+ {[%emt 0:01:09]}
Nxb4 {[%emt 0:00:05]} 15. a3 {[%emt 0:00:08]} Nd5 {[%emt 0:00:03]} 16. Rc1 {
[%emt 0:00:09]} Bd7 {[%emt 0:00:02]} 17. Bg2 {[%emt 0:00:09]} Rhc8 {[%emt 0:00:
00]} 18. O-O {[%emt 0:00:25]} Rxc1 {[%emt 0:15:25]} 19. Rxc1 {[%emt 0:00:07]}
Rc8 {[%emt 0:00:01]} 20. Rxc8 {[%emt 0:00:23]} Bxc8 {[%emt 0:00:04]} 21. Nd2 {
[%emt 0:01:38]} Nb6 {[%emt 0:06:28]} 22. b3 {[%emt 0:00:56]} a5 {[%emt 0:04:21]
} 23. f4 {[%emt 0:02:18]} Nd7 {[%emt 0:06:19]} 24. Kf2 {[%emt 0:08:16]} b6 {
[%emt 0:04:14]} 25. Ke3 {[%emt 0:04:04]} Ba6 {[%emt 0:00:27]} 26. Bf3 {[%emt 0:
00:00]} f5 {[%emt 0:01:40]} 27. Kd4 {[%emt 0:02:46]} f6 {[%emt 0:03:34]} 28. b4
{[%emt 0:04:57]} e5+ {[%emt 0:18:32]} 29. Kc3 {[%emt 0:02:19]} axb4+ {[%emt 0:
00:00]} 30. axb4 {[%emt 0:01:17]} Bb5 {[%emt 0:05:05]} 31. Nf1 {[%emt 0:04:14]}
Ke6 {[%emt 0:17:33]} 32. Ne3 {[%emt 0:01:36]} e4 {[%emt 0:05:21]} 33. Bh5 {
[%emt 0:00:04]} Ba6 {[%emt 0:00:19]} 34. Nc2 {[%emt 0:02:12]} Nb8 {[%emt 0:00:
00]} 35. Nd4+ {[%emt 0:01:06]} Kd7 {[%emt 0:00:02]} 36. Bf7 {[%emt 0:05:10]}
Ke7 {[%emt 0:01:44]} 37. Bg8 {[%emt 0:02:39]} h6 {[%emt 0:00:27]} 38. Bh7 {
[%emt 0:02:05]} Bb7 {[%emt 0:00:29]} 39. Nxf5+ {[%emt 0:01:30]} Ke6 {[%emt 0:
00:00]} 40. Nxh6 {[%emt 0:00:50]} Na6 {[%emt 0:00:24]} 41. Bg8+ {[%emt 0:33:02]
} Kd7 {[%emt 0:30:10]} 42. Nf5 {[%emt 0:00:46]} Nc7 {[%emt 0:00:05]} 43. Bc4 {
[%emt 0:01:37]} b5 {[%emt 0:00:00]} 44. Bb3 {[%emt 0:00:00]} Bd5 {[%emt 0:00:
00]} 45. Bc2 {[%emt 0:00:00]} Bb7 {[%emt 0:00:00]} 46. Kd4 {[%emt 0:00:00]} Na6
{[%emt 0:00:00]} 47. Bxe4 {[%emt 0:00:00]} Bxe4 {[%emt 0:00:00]} 48. Kxe4 {
[%emt 0:00:00]} Nxb4 {[%emt 0:00:00]} 49. Nd4 {[%emt 0:00:00]} 1-0

[Event "44th Chess Olympiad Open 2022"]
[Site "Chennai"]
[Date "2022.07.31"]
[Round "3.50"]
[White "Bolanos, Fernando"]
[Black "Al-Homaid, Abdulla"]
[Result "1-0"]
[WhiteElo "2258"]
[BlackElo "1358"]
[Annotator "RC"]
[PlyCount "77"]
[EventDate "2022.??.??"]
[TimeControl "60"]

1. e4 {[%emt 0:00:07]} e5 {[%emt 0:00:09]} 2. Nf3 {[%emt 0:00:17]} Nc6 {
[%emt 0:00:12]} 3. Bb5 {[%emt 0:01:01]} a6 {[%emt 0:00:39]} 4. Ba4 {[%emt 0:00:
00]} Nf6 {[%emt 0:00:30]} 5. O-O {[%emt 0:00:17]} b5 {[%emt 0:00:13]} 6. Bb3 {
[%emt 0:00:06]} Bc5 {[%emt 0:00:13]} 7. c3 {[%emt 0:00:10]} d6 {[%emt 0:00:19]}
8. d4 {[%emt 0:04:18]} Bb6 {[%emt 0:00:56]} 9. a4 {[%emt 0:00:12]} Bg4 {
[%emt 0:04:51]} 10. Bg5 {[%emt 0:00:16]} O-O {[%emt 0:05:31]} 11. Bd5 {[%emt 0:
00:00]} Qd7 {[%emt 0:22:51]} 12. Bxf6 {[%emt 0:07:49]} gxf6 {[%emt 0:00:32]}
13. Bxc6 {[%emt 0:00:05]} Qxc6 {[%emt 0:00:15]} 14. Nxe5 {[%emt 0:00:10]} fxe5
{[%emt 0:02:00]} 15. Qxg4+ {[%emt 0:00:22]} Kh8 {[%emt 0:00:18]} 16. dxe5 {
[%emt 0:09:21]} dxe5 {[%emt 0:01:07]} 17. Nd2 {[%emt 0:00:20]} Qh6 {[%emt 0:00:
00]} 18. Nf3 {[%emt 0:03:43]} Rg8 {[%emt 0:03:17]} 19. Qf5 {[%emt 0:00:31]} f6
{[%emt 0:01:56]} 20. axb5 {[%emt 0:01:30]} axb5 {[%emt 0:01:20]} 21. Rxa8 {
[%emt 0:00:12]} Rxa8 {[%emt 0:00:20]} 22. Rd1 {[%emt 0:00:25]} Qg7 {[%emt 0:00:
00]} 23. g3 {[%emt 0:00:54]} Bc5 {[%emt 0:02:15]} 24. Rd7 {[%emt 0:04:45]} Qh6
{[%emt 0:06:01]} 25. Kg2 {[%emt 0:04:12]} Bd6 {[%emt 0:02:06]} 26. h3 {[%emt 0:
00:00]} Qg6 {[%emt 0:05:48]} 27. Nh4 {[%emt 0:01:57]} Qh6 {[%emt 0:01:44]} 28.
Qe6 {[%emt 0:02:23]} Rg8 {[%emt 0:00:48]} 29. Nf5 {[%emt 0:03:05]} Qg6 {
[%emt 0:02:28]} 30. Rf7 {[%emt 0:01:59]} b4 {[%emt 0:01:29]} 31. Rxf6 {[%emt 0:
00:00]} Qe8 {[%emt 0:00:28]} 32. Nxd6 {[%emt 0:01:43]} cxd6 {[%emt 0:00:11]}
33. Qxd6 {[%emt 0:00:50]} bxc3 {[%emt 0:00:33]} 34. bxc3 {[%emt 0:00:06]} Qh5 {
[%emt 0:00:50]} 35. Rf8 {[%emt 0:00:44]} Qg5 {[%emt 0:00:48]} 36. Qb8 {[%emt 0:
00:00]} h6 {[%emt 0:00:24]} 37. Rxg8+ {[%emt 0:00:24]} Qxg8 {[%emt 0:00:09]}
38. Qxg8+ {[%emt 0:00:20]} Kxg8 {[%emt 0:00:11]} 39. f4 {[%emt 0:00:07]} 1-0

[Event "44th Chess Olympiad Open 2022"]
[Site "Chennai"]
[Date "2022.07.31"]
[Round "3.50"]
[White "Pinto, Daniel"]
[Black "Al-Sulaiti, Ghanem"]
[Result "0-1"]
[WhiteElo "2249"]
[BlackElo "2183"]
[Annotator "RC"]
[PlyCount "114"]
[EventDate "2022.??.??"]
[TimeControl "60"]

1. e4 {[%emt 0:00:18]} c5 {[%emt 0:00:05]} 2. Nf3 {[%emt 0:00:06]} Nc6 {
[%emt 0:00:05]} 3. Bb5 {[%emt 0:00:11]} g6 {[%emt 0:00:07]} 4. O-O {[%emt 0:00:
00]} Bg7 {[%emt 0:00:10]} 5. Re1 {[%emt 0:00:32]} Nf6 {[%emt 0:01:14]} 6. e5 {
[%emt 0:00:44]} Nd5 {[%emt 0:01:08]} 7. Nc3 {[%emt 0:00:35]} Nc7 {[%emt 0:00:
00]} 8. Bxc6 {[%emt 0:00:08]} dxc6 {[%emt 0:00:27]} 9. d3 {[%emt 0:00:33]} Bg4
{[%emt 0:02:31]} 10. h3 {[%emt 0:06:25]} Bxf3 {[%emt 0:01:28]} 11. Qxf3 {
[%emt 0:00:09]} Ne6 {[%emt 0:00:17]} 12. Bf4 {[%emt 0:05:44]} O-O {[%emt 0:00:
00]} 13. Qe3 {[%emt 0:14:32]} Qd4 {[%emt 0:09:53]} 14. Bh2 {[%emt 0:05:36]}
Qxe3 {[%emt 0:05:40]} 15. fxe3 {[%emt 0:06:32]} f5 {[%emt 0:04:56]} 16. a3 {
[%emt 0:12:35]} a5 {[%emt 0:07:14]} 17. Rab1 {[%emt 0:06:12]} a4 {[%emt 0:00:
00]} 18. Rbd1 {[%emt 0:05:17]} b5 {[%emt 0:11:12]} 19. d4 {[%emt 0:09:41]} b4 {
[%emt 0:00:31]} 20. Ne2 {[%emt 0:07:20]} Bh6 {[%emt 0:07:16]} 21. Bf4 {[%emt 0:
00:00]} g5 {[%emt 0:10:02]} 22. Bg3 {[%emt 0:00:04]} f4 {[%emt 0:01:12]} 23.
exf4 {[%emt 0:00:05]} gxf4 {[%emt 0:00:06]} 24. Bh4 {[%emt 0:00:51]} f3 {
[%emt 0:00:36]} 25. gxf3 {[%emt 0:00:45]} Rxf3 {[%emt 0:02:34]} 26. Kg2 {
[%emt 0:00:47]} Raf8 {[%emt 0:06:34]} 27. Ng1 {[%emt 0:05:36]} R3f7 {[%emt 0:
00:00]} 28. dxc5 {[%emt 0:01:08]} Rg7+ {[%emt 0:00:25]} 29. Bg3 {[%emt 0:00:43]
} Nf4+ {[%emt 0:00:52]} 30. Kh2 {[%emt 0:00:15]} Nh5 {[%emt 0:00:14]} 31. Ne2 {
[%emt 0:03:50]} Nxg3 {[%emt 0:06:01]} 32. Nxg3 {[%emt 0:00:01]} Rf2+ {[%emt 0:
00:00]} 33. Kg1 {[%emt 0:00:00]} Rd2 {[%emt 0:00:56]} 34. Rxd2 {[%emt 0:01:39]}
Bxd2 {[%emt 0:00:03]} 35. Re2 {[%emt 0:02:12]} Rxg3+ {[%emt 0:00:09]} 36. Kf2 {
[%emt 0:00:42]} bxa3 {[%emt 0:01:55]} 37. bxa3 {[%emt 0:00:09]} Rxh3 {[%emt 0:
00:00]} 38. Kg2 {[%emt 0:00:13]} Rxa3 {[%emt 0:00:10]} 39. Rxd2 {[%emt 0:00:24]
} Rc3 {[%emt 0:00:20]} 40. Rd8+ {[%emt 0:01:58]} Kf7 {[%emt 0:00:48]} 41. Rh8 {
[%emt 0:30:14]} a3 {[%emt 0:31:51]} 42. Rxh7+ {[%emt 0:00:21]} Ke6 {[%emt 0:00:
00]} 43. Kf2 {[%emt 0:00:20]} a2 {[%emt 0:03:38]} 44. Rh1 {[%emt 0:00:06]} Kxe5
{[%emt 0:01:06]} 45. Ke2 {[%emt 0:00:08]} Rxc2+ {[%emt 0:00:00]} 46. Kd3 {
[%emt 0:00:00]} Rxc5 {[%emt 0:00:00]} 47. Ra1 {[%emt 0:00:00]} Ra5 {[%emt 0:00:
00]} 48. Kc4 {[%emt 0:00:00]} Kd6 {[%emt 0:00:00]} 49. Kb4 {[%emt 0:00:00]} Ra8
{[%emt 0:00:00]} 50. Rd1+ {[%emt 0:00:00]} Kc7 {[%emt 0:00:00]} 51. Ra1 {
[%emt 0:00:00]} e5 {[%emt 0:00:00]} 52. Kc5 {[%emt 0:00:00]} e4 {[%emt 0:00:00]
} 53. Kd4 {[%emt 0:00:00]} Ra4+ {[%emt 0:00:00]} 54. Kc3 {[%emt 0:00:00]} Kd6 {
[%emt 0:00:00]} 55. Kb3 {[%emt 0:00:00]} Ra8 {[%emt 0:00:00]} 56. Kb2 {[%emt 0:
00:00]} Ke5 {[%emt 0:00:00]} 57. Rc1 {[%emt 0:00:00]} a1=Q+ {[%emt 0:00:00]}
0-1

[Event "44th Chess Olympiad Open 2022"]
[Site "Chennai"]
[Date "2022.07.31"]
[Round "3.50"]
[White "Yousuf M M Al Mutawa"]
[Black "Mendoza, Rodrigo"]
[Result "1/2-1/2"]
[WhiteElo "2120"]
[BlackElo "2215"]
[Annotator "RC"]
[PlyCount "77"]
[EventDate "2022.??.??"]
[TimeControl "60"]

1. e4 {[%emt 0:00:03]} c6 {[%emt 0:00:00]} 2. d4 {[%emt 0:00:10]} d5 {[%emt 0:
00:00]} 3. exd5 {[%emt 0:00:19]} cxd5 {[%emt 0:00:01]} 4. Bd3 {[%emt 0:00:19]}
Nf6 {[%emt 0:00:07]} 5. h3 {[%emt 0:01:02]} Nc6 {[%emt 0:01:09]} 6. c3 {
[%emt 0:01:06]} Qc7 {[%emt 0:03:29]} 7. Nf3 {[%emt 0:01:31]} g6 {[%emt 0:01:29]
} 8. O-O {[%emt 0:01:06]} Bg7 {[%emt 0:02:50]} 9. Re1 {[%emt 0:03:47]} O-O {
[%emt 0:00:07]} 10. Qc2 {[%emt 0:10:13]} Re8 {[%emt 0:01:51]} 11. Nbd2 {
[%emt 0:01:30]} Nh5 {[%emt 0:10:11]} 12. Nf1 {[%emt 0:02:59]} Nf4 {[%emt 0:00:
00]} 13. Ng3 {[%emt 0:01:01]} Bd7 {[%emt 0:03:30]} 14. Be3 {[%emt 0:08:40]} a6
{[%emt 0:07:54]} 15. Bf1 {[%emt 0:07:38]} e5 {[%emt 0:05:39]} 16. Qd2 {[%emt 0:
00:00]} Ne6 {[%emt 0:00:11]} 17. dxe5 {[%emt 0:03:34]} Nxe5 {[%emt 0:00:15]}
18. Nxe5 {[%emt 0:00:33]} Bxe5 {[%emt 0:00:53]} 19. Ne2 {[%emt 0:02:22]} Qd6 {
[%emt 0:04:12]} 20. Nd4 {[%emt 0:08:43]} Nc5 {[%emt 0:00:25]} 21. Bd3 {[%emt 0:
00:00]} Ne4 {[%emt 0:02:46]} 22. Qc2 {[%emt 0:00:29]} Rad8 {[%emt 0:08:00]} 23.
Rad1 {[%emt 0:01:33]} Qc7 {[%emt 0:03:09]} 24. Nf3 {[%emt 0:01:00]} Bg7 {
[%emt 0:00:36]} 25. Qb3 {[%emt 0:02:10]} b5 {[%emt 0:00:33]} 26. a3 {[%emt 0:
00:00]} Nc5 {[%emt 0:09:58]} 27. Qc2 {[%emt 0:00:51]} Nxd3 {[%emt 0:04:35]} 28.
Qxd3 {[%emt 0:00:09]} Bf5 {[%emt 0:01:02]} 29. Qd2 {[%emt 0:00:20]} a5 {
[%emt 0:03:29]} 30. Bd4 {[%emt 0:01:37]} f6 {[%emt 0:05:11]} 31. Nh2 {[%emt 0:
00:00]} Qc6 {[%emt 0:00:39]} 32. Nf1 {[%emt 0:00:33]} Kf7 {[%emt 0:01:47]} 33.
Ng3 {[%emt 0:00:34]} Bc8 {[%emt 0:01:30]} 34. Ne2 {[%emt 0:04:31]} Re4 {
[%emt 0:01:15]} 35. Ng3 {[%emt 0:00:39]} Ree8 {[%emt 0:00:01]} 36. Ne2 {
[%emt 0:02:26]} Re4 {[%emt 0:03:04]} 37. Ng3 {[%emt 0:00:49]} Ree8 {[%emt 0:00:
00]} 38. Ne2 {[%emt 0:05:41]} g5 {[%emt 0:05:46]} 39. Be3 {[%emt 0:00:00]}
1/2-1/2

[Event "44th Chess Olympiad Open 2022"]
[Site "Chennai"]
[Date "2022.07.31"]
[Round "3.51"]
[White "Saraci, Nderim"]
[Black "Beukes, Dante M"]
[Result "1-0"]
[WhiteElo "2495"]
[BlackElo "2234"]
[Annotator "RC"]
[PlyCount "109"]
[EventDate "2022.??.??"]
[TimeControl "60"]

1. Nf3 {[%emt 0:00:04]} Nf6 {[%emt 0:00:13]} 2. g3 {[%emt 0:00:20]} g6 {
[%emt 0:00:06]} 3. Bg2 {[%emt 0:00:06]} Bg7 {[%emt 0:00:05]} 4. O-O {[%emt 0:
00:00]} O-O {[%emt 0:00:05]} 5. d4 {[%emt 0:00:27]} d6 {[%emt 0:00:06]} 6. c4 {
[%emt 0:00:06]} c5 {[%emt 0:01:05]} 7. Nc3 {[%emt 0:01:15]} Nc6 {[%emt 0:00:20]
} 8. dxc5 {[%emt 0:17:45]} dxc5 {[%emt 0:00:11]} 9. Be3 {[%emt 0:01:13]} Be6 {
[%emt 0:00:06]} 10. Qa4 {[%emt 0:11:49]} Nd4 {[%emt 0:06:50]} 11. Bxd4 {
[%emt 0:07:23]} cxd4 {[%emt 0:00:08]} 12. Nb5 {[%emt 0:03:00]} Bd7 {[%emt 0:00:
00]} 13. Qb3 {[%emt 0:03:31]} Ne4 {[%emt 0:01:11]} 14. Rad1 {[%emt 0:06:09]}
Bxb5 {[%emt 0:05:06]} 15. Qxb5 {[%emt 0:03:49]} Nd6 {[%emt 0:02:54]} 16. Qa4 {
[%emt 0:06:11]} Qb6 {[%emt 0:04:12]} 17. c5 {[%emt 0:11:36]} Qxc5 {[%emt 0:00:
00]} 18. Nxd4 {[%emt 0:00:25]} Rac8 {[%emt 0:14:01]} 19. b4 {[%emt 0:03:34]}
Qb6 {[%emt 0:00:11]} 20. e3 {[%emt 0:04:57]} Rc4 {[%emt 0:03:11]} 21. a3 {
[%emt 0:00:58]} Bxd4 {[%emt 0:12:12]} 22. Rxd4 {[%emt 0:00:07]} Rxd4 {[%emt 0:
00:00]} 23. exd4 {[%emt 0:00:06]} Nb5 {[%emt 0:00:07]} 24. Re1 {[%emt 0:01:31]}
Rc8 {[%emt 0:03:50]} 25. h4 {[%emt 0:03:04]} Kf8 {[%emt 0:05:33]} 26. h5 {
[%emt 0:06:22]} Rd8 {[%emt 0:10:36]} 27. d5 {[%emt 0:01:57]} Nc3 {[%emt 0:00:
00]} 28. Qb3 {[%emt 0:01:05]} Qd4 {[%emt 0:00:48]} 29. Re3 {[%emt 0:00:13]} Rc8
{[%emt 0:07:32]} 30. d6 {[%emt 0:01:18]} exd6 {[%emt 0:00:17]} 31. Bxb7 {
[%emt 0:00:09]} Rc7 {[%emt 0:00:11]} 32. Bf3 {[%emt 0:00:08]} Qd2 {[%emt 0:00:
00]} 33. Kg2 {[%emt 0:01:18]} d5 {[%emt 0:01:05]} 34. b5 {[%emt 0:00:24]} Qd4 {
[%emt 0:01:08]} 35. h6 {[%emt 0:02:02]} Qc4 {[%emt 0:05:46]} 36. Qb2 {[%emt 0:
00:00]} d4 {[%emt 0:00:08]} 37. Re1 {[%emt 0:01:18]} Nxb5 {[%emt 0:06:10]} 38.
Re5 {[%emt 0:01:13]} a6 {[%emt 0:00:47]} 39. a4 {[%emt 0:01:09]} Qxa4 {[%emt 0:
00:00]} 40. Qd2 {[%emt 0:00:25]} Qa3 {[%emt 0:01:27]} 41. Qg5 {[%emt 0:13:54]}
Qd6 {[%emt 0:04:49]} 42. Rd5 {[%emt 0:00:07]} f6 {[%emt 0:00:06]} 43. Qd2 {
[%emt 0:02:15]} Qe7 {[%emt 0:04:18]} 44. Qa5 {[%emt 0:01:04]} Nd6 {[%emt 0:00:
00]} 45. Qxa6 {[%emt 0:01:29]} Nf5 {[%emt 0:00:26]} 46. Qa8+ {[%emt 0:01:11]}
Kf7 {[%emt 0:00:38]} 47. Qh8 {[%emt 0:03:29]} Ke6 {[%emt 0:02:01]} 48. Qg8+ {
[%emt 0:01:42]} Qf7 {[%emt 0:00:22]} 49. Qb8 {[%emt 0:00:45]} Qe7 {[%emt 0:00:
00]} 50. Rd8 {[%emt 0:00:44]} Qc5 {[%emt 0:05:18]} 51. Qb3+ {[%emt 0:02:18]}
Ke7 {[%emt 0:00:17]} 52. Qg8 {[%emt 0:01:06]} Qb5 {[%emt 0:05:07]} 53. Rb8 {
[%emt 0:01:43]} Qa5 {[%emt 0:01:09]} 54. Qe8+ {[%emt 0:01:31]} Kd6 {[%emt 0:00:
00]} 55. Rd8+ {[%emt 0:00:05]} 1-0

[Event "44th Chess Olympiad Open 2022"]
[Site "Chennai"]
[Date "2022.07.31"]
[Round "3.51"]
[White "Makolli, Perparim"]
[Black "Khoa, Goodwill"]
[Result "1-0"]
[WhiteElo "2247"]
[BlackElo "1850"]
[Annotator "RC"]
[PlyCount "47"]
[EventDate "2022.??.??"]
[TimeControl "60"]

1. e4 {[%emt 0:00:24]} c5 {[%emt 0:00:23]} 2. Nf3 {[%emt 0:01:03]} d6 {[%emt 0:
00:00]} 3. c3 {[%emt 0:02:48]} Nf6 {[%emt 0:01:51]} 4. Bc4 {[%emt 0:00:59]} Nc6
{[%emt 0:03:48]} 5. d3 {[%emt 0:03:53]} a6 {[%emt 0:09:56]} 6. a4 {[%emt 0:00:
00]} g6 {[%emt 0:06:30]} 7. O-O {[%emt 0:01:45]} Bg7 {[%emt 0:00:13]} 8. h3 {
[%emt 0:03:48]} O-O {[%emt 0:00:27]} 9. Bb3 {[%emt 0:01:24]} Qc7 {[%emt 0:00:
00]} 10. Re1 {[%emt 0:01:15]} Bd7 {[%emt 0:01:48]} 11. d4 {[%emt 0:02:11]} cxd4
{[%emt 0:03:28]} 12. cxd4 {[%emt 0:00:23]} Na5 {[%emt 0:00:42]} 13. Ba2 {
[%emt 0:01:57]} Rac8 {[%emt 0:00:13]} 14. Nc3 {[%emt 0:09:03]} b5 {[%emt 0:00:
00]} 15. axb5 {[%emt 0:02:10]} axb5 {[%emt 0:00:20]} 16. e5 {[%emt 0:06:00]}
dxe5 {[%emt 0:22:46]} 17. dxe5 {[%emt 0:02:48]} Rcd8 {[%emt 0:00:37]} 18. exf6
{[%emt 0:01:14]} exf6 {[%emt 0:00:19]} 19. Nd5 {[%emt 0:01:41]} Qb7 {[%emt 0:
00:00]} 20. Qd4 {[%emt 0:08:49]} Bc6 {[%emt 0:18:07]} 21. Nxf6+ {[%emt 0:00:44]
} Kh8 {[%emt 0:00:33]} 22. Qh4 {[%emt 0:00:10]} h5 {[%emt 0:07:01]} 23. Nxh5 {
[%emt 0:02:27]} Rd4 {[%emt 0:03:12]} 24. Nxd4 {[%emt 0:01:00]} 1-0